fUST/lending_fUST_20240226
["ID","MTS","AMOUNT","RATE_DAILY","PERIOD"]
[315164765,1708897845899,-182.51135653,0.00019467,2]
[315164767,1708897845908,-3148.29518075,0.00019471,2]
[315164770,1708897845921,-2961.64612266,0.00019474,2]
[315164772,1708897845930,-4173.32151869,0.00019478,2]
[315164774,1708897845938,-182.51135653,0.00019481,2]
[315164776,1708897845947,-4173.32151869,0.00019482,2]
[315164778,1708897845956,-182.51135653,0.00019486,2]
[315164780,1708897845965,-3148.29518075,0.00019492,2]
[315164783,1708897845975,-3148.29518075,0.00019497,2]
[315164784,1708897845984,-153.0,0.000195,2]
[315164787,1708897845994,-153.0,0.000195,2]
[315164789,1708897846003,-226.9535109,0.000195,2]
[315164792,1708897846012,-153.0,0.000195,2]
[315164795,1708897846021,-200.5569553,0.000195,2]
[315164797,1708897846031,-153.0,0.000195,2]
[315164799,1708897846040,-153.0,0.000195,2]
[315164801,1708897846050,-153.0,0.000195,2]
[315164803,1708897846059,-200.5569553,0.000195,2]
[315164805,1708897846069,-153.0,0.000195,2]
[315164807,1708897846078,-153.0,0.000195,2]
[315164809,1708897846088,-153.0,0.000195,2]
[315164811,1708897846097,-153.0,0.000195,2]
[315164813,1708897846106,-153.0,0.000195,2]
[315164815,1708897846116,-153.0,0.000195,2]
[315164817,1708897846125,-153.0,0.000195,2]
[315164819,1708897846135,-153.0,0.000195,2]
[315164821,1708897846145,-200.5569553,0.000195,2]
[315164823,1708897846154,-153.0,0.000195,2]
[315164825,1708897846168,-153.0,0.000195,2]
[315164827,1708897846180,-153.0,0.000195,2]
[315164829,1708897846189,-153.0,0.000195,2]
[315164831,1708897846228,-200.5569553,0.000195,2]
[315164833,1708897846237,-153.0,0.000195,2]
[315164835,1708897846246,-153.0,0.000195,2]
[315164837,1708897846256,-200.5569553,0.000195,2]
[315164839,1708897846265,-153.0,0.000195,2]
[315164841,1708897846274,-200.5569553,0.000195,2]
[315164843,1708897846284,-153.0,0.000195,2]
[315164845,1708897846293,-153.0,0.000195,2]
[315164847,1708897846302,-153.0,0.000195,2]
[315164849,1708897846311,-200.5569553,0.000195,2]
[315164851,1708897846320,-153.0,0.000195,2]
[315164853,1708897846329,-153.0,0.000195,2]
[315164855,1708897846338,-153.0,0.000195,2]
[315164857,1708897846347,-153.0,0.000195,2]
[315164859,1708897846356,-306.0,0.000195,2]
[315164861,1708897846365,-153.0,0.000195,2]
[315164863,1708897846374,-153.0,0.000195,2]
[315164865,1708897846383,-200.5569553,0.000195,2]
[315164867,1708897846392,-153.0,0.000195,2]
[315164869,1708897846401,-153.0,0.000195,2]
[315164871,1708897846410,-2961.64612266,0.00019535,2]
[315164873,1708897846421,-2961.64612266,0.00019596,2]
[315164875,1708897846431,-166.666666,0.00019627,2]
[315164877,1708897846440,-2961.64612266,0.00019656,2]
[315164879,1708897846449,-2375.02969774,0.000197,2]
[315164881,1708897846458,-2375.02969774,0.000197,2]
[315164883,1708897846467,-2375.02969774,0.000197,2]
[315164885,1708897846476,-3148.29518074,0.000197,2]
[315164887,1708897846485,-3148.29518074,0.000197,2]
[315164889,1708897846494,-3148.29518074,0.000197,2]
[315164891,1708897846503,-2961.64612266,0.00019717,2]
[315164893,1708897846512,-500.0,0.00019726,2]
[315164895,1708897846521,-500.0,0.00019726,2]
[315164897,1708897846531,-500.0,0.00019726,2]
[315164899,1708897846540,-500.0,0.00019726,2]
[315164901,1708897846549,-151.69999809,0.00019726,2]
[315164903,1708897846559,-500.0,0.00019726,2]
[315164905,1708897846569,-1139.59,0.00019726,2]
[315164907,1708897846578,-539.49,0.00019726,2]
[315164909,1708897846588,-500.0,0.00019726,2]
[315164911,1708897846598,-500.0,0.00019726,2]
[315164913,1708897846607,-500.0,0.00019726,2]
[315164915,1708897846617,-1004.11866743,0.00019726,2]
[315164917,1708897846626,-500.0,0.00019726,2]
[315164919,1708897846637,-500.0,0.00019726,2]
[315164921,1708897846646,-500.0,0.00019726,2]
[315164923,1708897846659,-500.0,0.00019726,2]
[315164925,1708897846669,-500.0,0.00019726,2]
[315164927,1708897846678,-500.0,0.00019726,2]
[315164929,1708897846689,-500.0,0.00019726,2]
[315164931,1708897846698,-500.0,0.00019726,2]
[315164933,1708897846707,-510.22306871,0.00019726,2]
[315164943,1708897846795,-500.0,0.00019726,2]
[315164945,1708897846805,-592.55105003,0.00019726,2]
[315164947,1708897846816,-500.0,0.00019726,2]
[315164949,1708897846826,-501.27644702,0.00019726,2]
[315164951,1708897846836,-500.0,0.00019726,2]
[315164953,1708897846846,-500.0,0.00019726,2]
[315164955,1708897846855,-695.86,0.00019726,2]
[315164957,1708897846864,-500.0,0.00019726,2]
[315164959,1708897846873,-500.0,0.00019726,2]
[315164961,1708897846882,-500.0,0.00019726,2]
[315164963,1708897846892,-500.0,0.00019726,2]
[315164965,1708897846901,-500.0,0.00019726,2]
[315164967,1708897846910,-500.0,0.00019726,2]
[315164968,1708897846920,-500.0,0.00019726,2]
[315164971,1708897846930,-345.59939046,0.00019726,2]
[315164972,1708897846940,-602.69,0.00019726,2]
[315164974,1708897846949,-500.0,0.00019726,2]
[315164976,1708897846958,-500.0,0.00019726,2]
[315164978,1708897846968,-500.0,0.00019726,2]
[315164980,1708897846977,-501.3354814,0.00019726,2]
[315164983,1708897846986,-2722.22,0.00019726,2]
[315164985,1708897846995,-500.0,0.00019726,2]
[315164986,1708897847004,-500.0,0.00019726,2]
[315164989,1708897847013,-500.0,0.00019726,2]
[315164990,1708897847023,-1231.69,0.00019726,2]
[315164993,1708897847033,-500.0,0.00019726,2]
[315164994,1708897847042,-500.0,0.00019726,2]
[315164997,1708897847052,-500.0,0.00019726,2]
[315164998,1708897847061,-500.0,0.00019726,2]
[315165001,1708897847071,-500.0,0.00019726,2]
[315165002,1708897847080,-974.67,0.00019726,2]
[315165005,1708897847089,-500.0,0.00019726,2]
[315165007,1708897847099,-513.27120478,0.00019726,2]
[315165009,1708897847108,-500.0,0.00019726,2]
[315165010,1708897847117,-500.0,0.00019726,2]
[315165013,1708897847127,-500.0,0.00019726,2]
[315165014,1708897847136,-500.0,0.00019726,2]
[315165016,1708897847145,-500.0,0.00019726,2]
[315165018,1708897847155,-500.0,0.00019726,2]
[315165020,1708897847164,-500.0,0.00019726,2]
[315165022,1708897847175,-500.0,0.00019726,2]
[315165024,1708897847185,-500.0,0.00019726,2]
[315165027,1708897847195,-500.0,0.00019726,2]
[315165028,1708897847204,-500.0,0.00019726,2]
[315165030,1708897847213,-500.0,0.00019726,2]
[315165032,1708897847223,-500.0,0.00019726,2]
[315165034,1708897847232,-500.0,0.00019726,2]
[315165036,1708897847242,-500.81653216,0.00019726,2]
[315165038,1708897847251,-500.0,0.00019726,2]
[315165040,1708897847260,-500.0,0.00019726,2]
[315165042,1708897847270,-500.0,0.00019726,2]
[315165044,1708897847279,-500.0,0.00019726,2]
[315165046,1708897847289,-500.17639548,0.00019726,2]
[315165048,1708897847298,-500.0,0.00019726,2]
[315165050,1708897847308,-500.0,0.00019726,2]
[315165052,1708897847317,-500.0,0.00019726,2]
[315165054,1708897847327,-178.52864785,0.00019726,2]
[315165056,1708897847337,-1852.92,0.00019726,2]
[315165058,1708897847346,-155.87924966,0.00019726,2]
[315165060,1708897847355,-500.0,0.00019726,2]
[315165062,1708897847365,-500.0,0.00019726,2]
[315165064,1708897847375,-500.0,0.00019726,2]
[315165066,1708897847384,-500.0,0.00019726,2]
[315165068,1708897847394,-500.0,0.00019726,2]
[315165070,1708897847403,-500.0,0.00019726,2]
[315165072,1708897847413,-500.0,0.00019726,2]
[315165074,1708897847426,-1487.16,0.00019726,2]
[315165076,1708897847435,-500.0,0.00019726,2]
[315165078,1708897847445,-500.17034226,0.00019726,2]
[315165080,1708897847455,-232.63178787,0.00019726,2]
[315165082,1708897847465,-500.0,0.00019726,2]
[315165084,1708897847475,-500.0,0.00019726,2]
[315165086,1708897847485,-500.0,0.00019726,2]
[315165088,1708897847494,-500.0,0.00019726,2]
[315165090,1708897847503,-500.0,0.00019726,2]
[315165092,1708897847512,-500.0,0.00019726,2]
[315165094,1708897847521,-500.0,0.00019726,2]
[315165096,1708897847529,-500.0,0.00019726,2]
[315165097,1708897847538,-500.0,0.00019726,2]
[315165100,1708897847548,-1182.12,0.00019726,2]
[315165101,1708897847557,-405.33060812,0.00019726,2]
[315165103,1708897847566,-500.72533949,0.00019726,2]
[315165105,1708897847576,-500.0,0.00019726,2]
[315165108,1708897847589,-572.03726957,0.00019726,2]
[315165109,1708897847599,-500.0,0.00019726,2]
[315165111,1708897847609,-500.0,0.00019726,2]
[315165113,1708897847618,-500.0,0.00019726,2]
[315165116,1708897847632,-500.0,0.00019726,2]
[315165119,1708897847647,-748.25,0.00019726,2]
[315165121,1708897847667,-615.06,0.00019726,2]
[315165123,1708897847680,-500.0,0.00019726,2]
[315165126,1708897847693,-183.66690756,0.00019726,2]
[315165128,1708897847707,-500.0,0.00019726,2]
[315165131,1708897847722,-500.0,0.00019726,2]
[315165133,1708897847737,-500.0,0.00019726,2]
[315165136,1708897847750,-500.0,0.00019726,2]
[315165138,1708897847761,-500.0,0.00019726,2]
[315165140,1708897847774,-500.0,0.00019726,2]
[315165142,1708897847787,-500.0,0.00019726,2]
[315165145,1708897847801,-500.0,0.00019726,2]
[315165147,1708897847814,-500.0,0.00019726,2]
[315165150,1708897847827,-500.0,0.00019726,2]
[315165152,1708897847838,-500.0,0.00019726,2]
[315165155,1708897847854,-500.0,0.00019726,2]
[315165157,1708897847866,-500.0,0.00019726,2]
[315165159,1708897847879,-500.76231517,0.00019726,2]
[315165162,1708897847892,-439.43556303,0.00019726,2]
[315165164,1708897847905,-370.93073081,0.00019726,2]
[315165166,1708897847918,-553.33,0.00019726,2]
[315165169,1708897847931,-502.10062869,0.00019726,2]
[315165171,1708897847946,-691.02,0.00019726,2]
[315165174,1708897847960,-500.0,0.00019726,2]
[315165176,1708897847973,-500.0,0.00019726,2]
[315165178,1708897847984,-500.0,0.00019726,2]
[315165181,1708897847994,-500.0,0.00019726,2]
[315165183,1708897848006,-1685.79,0.00019726,2]
[315165185,1708897848019,-561.17050029,0.00019726,2]
[315165187,1708897848031,-1575.7,0.00019726,2]
[315165190,1708897848044,-500.0,0.00019726,2]
[315165192,1708897848054,-500.0,0.00019726,2]
[315165194,1708897848066,-500.0,0.00019726,2]
[315165196,1708897848078,-500.0,0.00019726,2]
[315165199,1708897848088,-500.0,0.00019726,2]
[315165201,1708897848099,-500.0,0.00019726,2]
[315165203,1708897848110,-500.0,0.00019726,2]
[315165205,1708897848122,-500.0,0.00019726,2]
[315165207,1708897848133,-2137.92,0.00019726,2]
[315165210,1708897848145,-500.0,0.00019726,2]
[315165212,1708897848157,-2343.06,0.00019726,2]
[315165214,1708897848168,-500.0,0.00019726,2]
[315165216,1708897848179,-2292.58,0.00019726,2]
[315165218,1708897848191,-1702.35,0.00019726,2]
[315165220,1708897848203,-500.0,0.00019726,2]
[315165221,1708897848214,-501.38504518,0.00019726,2]
[315165222,1708897848226,-500.0,0.00019726,2]
[315165223,1708897848237,-500.0,0.00019726,2]
[315165224,1708897848249,-583.56,0.00019726,2]
[315165226,1708897848260,-500.0,0.00019726,2]
[315165228,1708897848272,-500.0,0.00019726,2]
[315165231,1708897848284,-611.24857281,0.00019726,2]
[315165233,1708897848295,-500.0,0.00019726,2]
[315165235,1708897848306,-500.0,0.00019726,2]
[315165237,1708897848317,-500.0,0.00019726,2]
[315165240,1708897848329,-622.45384115,0.00019726,2]
[315165242,1708897848341,-1000.0,0.00019726,2]
[315165244,1708897848353,-500.0,0.00019726,2]
[315165247,1708897848364,-500.0,0.00019726,2]
[315165249,1708897848376,-18813.85,0.00019726,2]
[315165251,1708897848387,-500.0,0.00019726,2]
[315165253,1708897848399,-9673.14,0.00019726,2]
[315165256,1708897848412,-500.0,0.00019726,2]
[315165258,1708897848425,-500.0,0.00019726,2]
[315165260,1708897848436,-500.0,0.00019726,2]
[315165262,1708897848447,-500.0,0.00019726,2]
[315165265,1708897848458,-500.0,0.00019726,2]
[315165267,1708897848470,-3468.02,0.00019726,2]
[315165269,1708897848482,-500.0,0.00019726,2]
[315165272,1708897848493,-500.0,0.00019726,2]
[315165274,1708897848505,-500.0,0.00019726,2]
[315165276,1708897848516,-500.0,0.00019726,2]
[315165278,1708897848528,-281.9513627,0.00019726,2]
[315165281,1708897848539,-1827.97,0.00019726,2]
[315165283,1708897848550,-500.0,0.00019726,2]
[315165285,1708897848561,-500.0,0.00019726,2]
[315165287,1708897848573,-500.0,0.00019726,2]
[315165290,1708897848585,-500.0,0.00019726,2]
[315165292,1708897848596,-500.0,0.00019726,2]
[315165294,1708897848608,-500.0,0.00019726,2]
[315165296,1708897848619,-1784.0,0.00019726,2]
[315165298,1708897848631,-1468.71,0.00019726,2]
[315165301,1708897848643,-500.0,0.00019726,2]
[315165303,1708897848656,-1156.53,0.00019726,2]
[315165318,1708897848789,-500.0,0.00019726,2]
[315165320,1708897848804,-625.0,0.00019726,2]
[315165322,1708897848813,-500.0,0.00019726,2]
[315165324,1708897848824,-9933.05,0.00019726,2]
[315165326,1708897848833,-2146.55,0.00019726,2]
[315165328,1708897848842,-18030.82,0.00019726,2]
[315165330,1708897848851,-443.11011788,0.00019726,2]
[315165332,1708897848860,-500.0,0.00019726,2]
[315165334,1708897848870,-500.0,0.00019726,2]
[315165336,1708897848879,-500.0,0.00019726,2]
[315165338,1708897848888,-500.0,0.00019726,2]
[315165340,1708897848897,-500.92354226,0.00019726,2]
[315165342,1708897848906,-500.0,0.00019726,2]
[315165344,1708897848917,-500.0,0.00019726,2]
[315165346,1708897848926,-500.0,0.00019726,2]
[315165348,1708897848935,-2493.34,0.00019726,2]
[315165350,1708897848944,-500.0,0.00019726,2]
[315165352,1708897848953,-500.0,0.00019726,2]
[315165355,1708897848962,-500.0,0.00019726,2]
[315165357,1708897848972,-500.0,0.00019726,2]
[315165358,1708897848981,-500.0,0.00019726,2]
[315165360,1708897848990,-1001.4,0.00019726,2]
[315165363,1708897849000,-500.0,0.00019726,2]
[315165365,1708897849009,-500.0,0.00019726,2]
[315165367,1708897849018,-470.59177166,0.00019726,2]
[315165369,1708897849028,-500.0,0.00019726,2]
[315165371,1708897849037,-3887.7,0.00019726,2]
[315165373,1708897849046,-500.0,0.00019726,2]
[315165375,1708897849055,-2565.63,0.00019726,2]
[315165376,1708897849064,-1323.43,0.00019726,2]
[315165378,1708897849073,-2961.64612266,0.00019778,2]
[315165380,1708897849082,-401.0588884,0.000198,2]
[315165382,1708897849091,-199.0619364,0.000198,2]
[315165385,1708897849100,-2961.64612266,0.00019839,2]
[315165386,1708897849109,-400.2880955,0.0001989,2]
[315165389,1708897849118,-200.5569553,0.0001989,2]
[315165391,1708897849128,-200.5569553,0.000199,2]
[315165393,1708897849138,-200.5569553,0.000199,2]
[315165395,1708897849150,-153.0,0.000199,2]
[315165397,1708897849159,-200.5569553,0.000199,2]
[315165398,1708897849170,-153.0,0.000199,2]
[315165400,1708897849179,-200.5569553,0.000199,2]
[315165403,1708897849188,-200.5569553,0.000199,2]
[315165405,1708897849198,-153.0,0.000199,2]
[315165407,1708897849208,-200.5569553,0.000199,2]
[315165409,1708897849217,-200.5569553,0.000199,2]
[315165411,1708897849226,-153.0,0.000199,2]
[315165413,1708897849235,-2961.64612266,0.000199,2]
[315165414,1708897849244,-625.44826244,0.00019998,2]
[315165416,1708897849253,-1412.29479491,0.00019998,2]
[315165418,1708897849262,-1448.31818436,0.00019998,2]
[315165421,1708897849271,-234.13825762,0.00019998,2]
[315165423,1708897849281,-677.415638,0.00019998,2]
[315165424,1708897849290,-656249.39403979,0.0002,2]
[315165455,1708897849564,-500.0,0.00019178,2]
[315165457,1708897849573,-528.23713786,0.00019178,2]
[315165459,1708897849582,-607.96,0.00019451,2]
[315165461,1708897849592,-500.0,0.00019452,2]
[315165463,1708897849602,-607.96,0.00019724,2]
[315165465,1708897849611,-607.96,0.00019725,2]
[315165467,1708897849620,-469.86952482,0.00019725,2]
[315165470,1708897849634,-138.09047518,0.00019725,2]
[315165471,1708897849645,-607.96,0.00019899,2]
[315165473,1708897849655,-607.96,0.00019998,2]
[315165475,1708897849665,-607.96,0.00019999,2]
[315165477,1708897849675,-607.96,0.00019999,2]
[315165480,1708897849685,-607.96,0.00019999,2]
[315165481,1708897849694,-607.96,0.00019999,2]
[315165483,1708897849704,-607.96,0.00019999,2]
[315165485,1708897849714,-11473.2618557,0.0002,2]
[315165487,1708897849726,-459756.9999994,0.0002,2]
[315165514,1708897849963,-500.0,0.00019178,2]
[315165516,1708897849972,-80.0,0.00019178,2]
[315166148,1708898036152,151.0438027,0.00021844,120]
[315166153,1708898060044,461.47077304,0.000176,2]
[315166158,1708898157146,3345.449,0.00029878,120]
[315166204,1708898578242,151.0438027,0.00021921,120]
[315166565,1708899038591,-174.34714351,0.00019078,2]
[315166566,1708899038601,-520.89,0.00019168,3]
[315166567,1708899038609,-174.34714351,0.00019169,2]
[315166568,1708899038619,-1005.15654509,0.00019177,2]
[315166569,1708899038628,-292.42142948,0.00019177,2]
[315166570,1708899038650,-7936.74906165,0.00019177,2]
[315166571,1708899038660,-999.6258381,0.00019177,2]
[315166572,1708899038669,-1518.81378183,0.00019177,2]
[315166573,1708899038679,-500.0,0.00019177,2]
[315166574,1708899038688,-500.4048006,0.00019178,2]
[315166575,1708899038699,-500.0,0.00019178,2]
[315166577,1708899038708,-243.58118859,0.00019178,2]
[315166578,1708899038717,-500.0,0.00019178,2]
[315166580,1708899038727,-500.0,0.00019178,2]
[315166583,1708899038736,-500.0,0.00019178,2]
[315166585,1708899038747,-500.0,0.00019178,2]
[315166587,1708899038756,-500.0,0.00019178,2]
[315166589,1708899038766,-500.0,0.00019178,2]
[315166591,1708899038775,-500.0,0.00019178,2]
[315166593,1708899038784,-500.0,0.00019178,2]
[315166595,1708899038794,-500.0,0.00019178,2]
[315166597,1708899038803,-500.0,0.00019178,2]
[315166599,1708899038812,-500.0,0.00019178,2]
[315166601,1708899038821,-500.0,0.00019178,2]
[315166603,1708899038831,-500.0,0.00019178,2]
[315166605,1708899038840,-500.0,0.00019178,2]
[315166607,1708899038850,-258.17853049,0.00019178,2]
[315166609,1708899038859,-500.0,0.00019178,2]
[315166611,1708899038868,-500.0,0.00019178,2]
[315166613,1708899038877,-500.0,0.00019178,2]
[315166615,1708899038886,-500.0,0.00019178,2]
[315166617,1708899038895,-500.0,0.00019178,2]
[315166618,1708899038905,-500.0,0.00019178,2]
[315166620,1708899038914,-500.0,0.00019178,2]
[315166622,1708899038924,-500.0,0.00019178,2]
[315166624,1708899038933,-500.0,0.00019178,2]
[315166626,1708899038942,-500.0,0.00019178,2]
[315166628,1708899038953,-500.0,0.00019178,2]
[315166630,1708899038962,-500.0,0.00019178,2]
[315166632,1708899038975,-500.0,0.00019178,2]
[315166634,1708899038985,-500.0,0.00019178,2]
[315166636,1708899038994,-500.0,0.00019178,2]
[315166638,1708899039003,-500.62528751,0.00019178,2]
[315166640,1708899039013,-355.86350824,0.00019178,2]
[315166642,1708899039022,-519.59807134,0.00019178,2]
[315166644,1708899039031,-500.0,0.00019178,2]
[315166646,1708899039040,-500.0,0.00019178,2]
[315166648,1708899039052,-716.7,0.00019178,2]
[315166650,1708899039061,-500.9993525,0.00019178,2]
[315166652,1708899039071,-500.0,0.00019178,2]
[315166654,1708899039080,-500.0,0.00019178,2]
[315166656,1708899039089,-500.0,0.00019178,2]
[315166658,1708899039099,-166.80363752,0.00019178,2]
[315166659,1708899039108,-501.35115534,0.00019178,2]
[315166662,1708899039118,-500.0,0.00019178,2]
[315166663,1708899039127,-391.22819217,0.00019178,2]
[315166665,1708899039136,-500.0,0.00019178,2]
[315166667,1708899039145,-500.0,0.00019178,2]
[315166669,1708899039155,-500.0,0.00019178,2]
[315166671,1708899039164,-500.0,0.00019178,2]
[315166673,1708899039174,-243.58118859,0.00019178,2]
[315166675,1708899039183,-500.0,0.00019178,2]
[315166677,1708899039193,-500.0,0.00019178,2]
[315166679,1708899039205,-500.0,0.00019178,2]
[315166681,1708899039216,-500.0,0.00019178,2]
[315166683,1708899039226,-500.0,0.00019178,2]
[315166685,1708899039235,-500.0,0.00019178,2]
[315166687,1708899039244,-500.0,0.00019178,2]
[315166689,1708899039254,-500.0,0.00019178,2]
[315166690,1708899039263,-500.0,0.00019178,2]
[315166691,1708899039272,-500.0,0.00019178,2]
[315166693,1708899039281,-500.0,0.00019178,2]
[315166695,1708899039293,-500.0,0.00019178,2]
[315166697,1708899039302,-500.0,0.00019178,2]
[315166698,1708899039311,-500.0,0.00019178,2]
[315166699,1708899039320,-500.0,0.00019178,2]
[315166700,1708899039329,-319.09963093,0.00019178,2]
[315166701,1708899039339,-500.66398244,0.00019178,2]
[315166702,1708899039348,-500.0,0.00019178,2]
[315166703,1708899039357,-500.0,0.00019178,2]
[315166704,1708899039366,-500.0,0.00019178,2]
[315166705,1708899039376,-403.61859012,0.00019178,2]
[315166706,1708899039385,-368.48758608,0.00019178,2]
[315166707,1708899039394,-500.0,0.00019178,2]
[315166708,1708899039403,-500.0,0.00019178,2]
[315166709,1708899039412,-500.0,0.00019178,2]
[315166710,1708899039421,-500.0,0.00019178,2]
[315166711,1708899039430,-377.86302329,0.00019178,2]
[315166712,1708899039440,-500.0,0.00019178,2]
[315166713,1708899039449,-500.0,0.00019178,2]
[315166714,1708899039459,-500.19563633,0.00019178,2]
[315166715,1708899039468,-500.0,0.00019178,2]
[315166716,1708899039476,-500.0,0.00019178,2]
[315166717,1708899039486,-500.0,0.00019178,2]
[315166718,1708899039494,-500.0,0.00019178,2]
[315166719,1708899039504,-500.0,0.00019178,2]
[315166720,1708899039513,-500.0,0.00019178,2]
[315166721,1708899039522,-500.0,0.00019178,2]
[315166722,1708899039531,-500.0,0.00019178,2]
[315166723,1708899039540,-500.0,0.00019178,2]
[315166724,1708899039549,-500.0,0.00019178,2]
[315166725,1708899039558,-500.0,0.00019178,2]
[315166726,1708899039567,-501.56260452,0.00019178,2]
[315166727,1708899039576,-500.0,0.00019178,2]
[315166728,1708899039585,-500.0,0.00019178,2]
[315166730,1708899039594,-500.0,0.00019178,2]
[315166732,1708899039603,-500.54304507,0.00019178,2]
[315166734,1708899039612,-500.0,0.00019178,2]
[315166736,1708899039621,-500.0,0.00019178,2]
[315166738,1708899039630,-500.0,0.00019178,2]
[315166740,1708899039639,-500.0,0.00019178,2]
[315166742,1708899039648,-500.0,0.00019178,2]
[315166744,1708899039657,-500.0,0.00019178,2]
[315166746,1708899039667,-500.0,0.00019178,2]
[315166748,1708899039676,-500.0,0.00019178,2]
[315166750,1708899039685,-500.0,0.00019178,2]
[315166752,1708899039694,-1203.99,0.00019178,2]
[315166754,1708899039704,-500.0,0.00019178,2]
[315166756,1708899039712,-500.0,0.00019178,2]
[315166758,1708899039721,-500.0,0.00019178,2]
[315166760,1708899039730,-500.0,0.00019178,2]
[315166762,1708899039739,-500.0,0.00019178,2]
[315166764,1708899039748,-500.0,0.00019178,2]
[315166765,1708899039757,-500.0,0.00019178,2]
[315166766,1708899039766,-500.0,0.00019178,2]
[315166767,1708899039775,-187.20221519,0.00019178,2]
[315166769,1708899039784,-500.0,0.00019178,2]
[315166771,1708899039793,-500.0,0.00019178,2]
[315166773,1708899039802,-500.0,0.00019178,2]
[315166775,1708899039811,-500.0,0.00019178,2]
[315166777,1708899039820,-500.0,0.00019178,2]
[315166779,1708899039829,-500.0,0.00019178,2]
[315166780,1708899039838,-500.0,0.00019178,2]
[315166782,1708899039847,-500.0,0.00019178,2]
[315166784,1708899039857,-500.0,0.00019178,2]
[315166786,1708899039866,-500.0,0.00019178,2]
[315166788,1708899039874,-500.0,0.00019178,2]
[315166790,1708899039883,-615.06,0.00019178,2]
[315166792,1708899039892,-2722.22,0.00019178,2]
[315166794,1708899039901,-500.0,0.00019178,2]
[315166796,1708899039910,-500.0,0.00019178,2]
[315166798,1708899039919,-500.0,0.00019178,2]
[315166800,1708899039929,-500.0,0.00019178,2]
[315166802,1708899039938,-1231.69,0.00019178,2]
[315166804,1708899039947,-500.0,0.00019178,2]
[315166806,1708899039956,-500.0,0.00019178,2]
[315166808,1708899039967,-500.0,0.00019178,2]
[315166809,1708899039978,-500.0,0.00019178,2]
[315166810,1708899039987,-500.0,0.00019178,2]
[315166812,1708899039996,-500.0,0.00019178,2]
[315166814,1708899040006,-500.0,0.00019178,2]
[315166816,1708899040015,-500.0,0.00019178,2]
[315166818,1708899040023,-500.0,0.00019178,2]
[315166820,1708899040033,-500.0,0.00019178,2]
[315166822,1708899040042,-500.0,0.00019178,2]
[315166824,1708899040051,-500.0,0.00019178,2]
[315166826,1708899040061,-500.0,0.00019178,2]
[315166828,1708899040070,-974.67,0.00019178,2]
[315166830,1708899040080,-500.0,0.00019178,2]
[315166832,1708899040088,-500.0,0.00019178,2]
[315166834,1708899040098,-500.0,0.00019178,2]
[315166836,1708899040107,-500.0,0.00019178,2]
[315166838,1708899040116,-500.0,0.00019178,2]
[315166840,1708899040125,-500.0,0.00019178,2]
[315166842,1708899040135,-500.0,0.00019178,2]
[315166844,1708899040145,-500.0,0.00019178,2]
[315166846,1708899040154,-500.0,0.00019178,2]
[315166848,1708899040163,-500.0,0.00019178,2]